[Event "Early-Titled-Tuesday-Blitz-July-09-2024"]
[Site "Chess.com"]
[Date "2024.07.09"]
[Round "1"]
[White "KorolDimitriy75"]
[Black "Ordekalog"]
[Result "0-1"]
[WhiteElo "2404"]
[BlackElo "2722"]
[TimeControl "180+1"]
[EndTime "8:06:19 PDT"]
[Termination "Ordekalog won by checkmate"]

1. d4 {[%clk 0:03:00.9]} 1... d5 {[%clk 0:02:58]} 2. c4 {[%clk 0:03:01.3]} 2...
e6 {[%clk 0:02:57.6]} 3. Nc3 {[%clk 0:03:01.4]} 3... c5 {[%clk 0:02:57.6]} 4.
cxd5 {[%clk 0:02:58.1]} 4... cxd4 {[%clk 0:02:57.3]} 5. Qxd4 {[%clk 0:02:57.8]}
5... Nc6 {[%clk 0:02:57]} 6. Qd1 {[%clk 0:02:52.7]} 6... exd5 {[%clk 0:02:56.8]}
7. Qxd5 {[%clk 0:02:53.6]} 7... Bd7 {[%clk 0:02:57.2]} 8. Qb3 {[%clk 0:02:22.9]}
8... Nf6 {[%clk 0:02:46.2]} 9. Nf3 {[%clk 0:02:18.2]} 9... Bc5 {[%clk
0:02:46.3]} 10. e3 {[%clk 0:01:49.5]} 10... Qe7 {[%clk 0:02:46.1]} 11. Be2
{[%clk 0:01:48.1]} 11... O-O-O {[%clk 0:02:46.1]} 12. O-O {[%clk 0:01:43]} 12...
Be6 {[%clk 0:02:38.1]} 13. Qa4 {[%clk 0:01:37.8]} 13... Kb8 {[%clk 0:02:34.7]}
14. a3 {[%clk 0:01:33.2]} 14... g5 {[%clk 0:02:32.8]} 15. b4 {[%clk 0:01:31.5]}
15... Bb6 {[%clk 0:02:31.7]} 16. Nxg5 {[%clk 0:00:34.6]} 16... Rhg8 {[%clk
0:02:24.5]} 17. Nge4 {[%clk 0:00:19.7]} 17... Nxe4 {[%clk 0:01:57.2]} 18. Nxe4
{[%clk 0:00:20.6]} 18... Bc4 {[%clk 0:01:56.9]} 19. Bf3 {[%clk 0:00:16]} 19...
Bxf1 {[%clk 0:01:54.9]} 20. Kxf1 {[%clk 0:00:16.9]} 20... Ne5 {[%clk 0:01:53.6]}
21. Be2 {[%clk 0:00:16.2]} 21... f5 {[%clk 0:01:50.1]} 22. Ng3 {[%clk 0:00:16]}
22... Qf6 {[%clk 0:01:37.8]} 23. Bb2 {[%clk 0:00:15.5]} 23... f4 {[%clk
0:01:37.5]} 24. Ne4 {[%clk 0:00:14.1]} 24... Qf5 {[%clk 0:01:36.7]} 25. Qb5
{[%clk 0:00:13]} 25... Rge8 {[%clk 0:01:31.8]} 26. exf4 {[%clk 0:00:10.4]} 26...
Qxf4 {[%clk 0:01:27.9]} 27. f3 {[%clk 0:00:10.7]} 27... Ng4 {[%clk 0:01:25.5]}
28. Qg5 {[%clk 0:00:08.2]} 28... Nxh2+ {[%clk 0:01:11.5]} 29. Ke1 {[%clk
0:00:08.5]} 29... Rxe4 {[%clk 0:00:54.6]} 30. Qxf4+ {[%clk 0:00:08.2]} 30...
Rxf4 {[%clk 0:00:55.5]} 31. Be5+ {[%clk 0:00:08.4]} 31... Bc7 {[%clk 0:00:55.8]}
32. Bxf4 {[%clk 0:00:09.3]} 32... Bxf4 {[%clk 0:00:55.7]} 33. Rd1 {[%clk
0:00:08.8]} 33... Bg3# {[%clk 0:00:54.9]} 0-1

[Event "Early-Titled-Tuesday-Blitz-July-09-2024"]
[Site "Chess.com"]
[Date "2024.07.09"]
[Round "1"]
[White "shimastream"]
[Black "EgorYakovlev"]
[Result "1-0"]
[WhiteElo "2915"]
[BlackElo "2499"]
[TimeControl "180+1"]
[EndTime "8:06:22 PDT"]
[Termination "shimastream won by checkmate"]

1. e4 {[%clk 0:03:00.9]} 1... c5 {[%clk 0:02:59.6]} 2. Nf3 {[%clk 0:02:59.7]}
2... d6 {[%clk 0:02:58.6]} 3. d4 {[%clk 0:02:54.9]} 3... cxd4 {[%clk 0:02:55]}
4. Qxd4 {[%clk 0:02:55.8]} 4... Nc6 {[%clk 0:02:49]} 5. Bb5 {[%clk 0:02:54.7]}
5... Bd7 {[%clk 0:02:44.1]} 6. Qd3 {[%clk 0:02:50.1]} 6... a6 {[%clk 0:02:26.2]}
7. Bxc6 {[%clk 0:02:48.7]} 7... Bxc6 {[%clk 0:02:25.6]} 8. c4 {[%clk 0:02:48.2]}
8... Nf6 {[%clk 0:02:23.2]} 9. Nc3 {[%clk 0:02:48]} 9... g6 {[%clk 0:02:19.8]}
10. O-O {[%clk 0:02:45.2]} 10... Bg7 {[%clk 0:02:19.7]} 11. h3 {[%clk
0:02:43.6]} 11... O-O {[%clk 0:02:18.4]} 12. Nd4 {[%clk 0:02:27.8]} 12... Qc7
{[%clk 0:02:09.2]} 13. Bg5 {[%clk 0:02:24]} 13... Rac8 {[%clk 0:02:07.2]} 14.
Rac1 {[%clk 0:02:20.5]} 14... Qd7 {[%clk 0:02:02.7]} 15. Rfe1 {[%clk 0:02:15.9]}
15... Rfd8 {[%clk 0:01:52.5]} 16. Nd5 {[%clk 0:02:08.4]} 16... Bxd5 {[%clk
0:01:42.5]} 17. exd5 {[%clk 0:02:09.3]} 17... Re8 {[%clk 0:01:30.2]} 18. b3
{[%clk 0:02:04.7]} 18... h6 {[%clk 0:01:29.4]} 19. Bd2 {[%clk 0:01:47.8]} 19...
b5 {[%clk 0:00:50.6]} 20. cxb5 {[%clk 0:01:45.5]} 20... Nxd5 {[%clk 0:00:49.7]}
21. bxa6 {[%clk 0:01:41.7]} 21... e6 {[%clk 0:00:31.4]} 22. Nb5 {[%clk
0:01:32.5]} 22... Ra8 {[%clk 0:00:25.1]} 23. a7 {[%clk 0:01:30.1]} 23... Rxa7
{[%clk 0:00:23.7]} 24. Nxa7 {[%clk 0:01:29.9]} 24... Qxa7 {[%clk 0:00:24]} 25.
a4 {[%clk 0:01:27.7]} 25... Bd4 {[%clk 0:00:23.5]} 26. Re2 {[%clk 0:01:25.5]}
26... e5 {[%clk 0:00:21.9]} 27. Bxh6 {[%clk 0:01:20.1]} 27... Nb4 {[%clk
0:00:15.1]} 28. Qf3 {[%clk 0:01:15.7]} 28... e4 {[%clk 0:00:10.9]} 29. Rxe4
{[%clk 0:01:12.9]} 29... Bxf2+ {[%clk 0:00:08.5]} 30. Kh1 {[%clk 0:01:11.8]}
30... Rxe4 {[%clk 0:00:05.5]} 31. Qxe4 {[%clk 0:01:12.7]} 31... Bd4 {[%clk
0:00:05.8]} 32. Rc8+ {[%clk 0:01:10]} 32... Kh7 {[%clk 0:00:06.3]} 33. Bd2
{[%clk 0:01:10.8]} 33... Na6 {[%clk 0:00:03.4]} 34. Qh4+ {[%clk 0:01:10.4]}
34... Kg7 {[%clk 0:00:03.1]} 35. Qh8# {[%clk 0:01:11.3]} 1-0

[Event "Early-Titled-Tuesday-Blitz-July-09-2024"]
[Site "Chess.com"]
[Date "2024.07.09"]
[Round "1"]
[White "Noki102"]
[Black "Beca95"]
[Result "0-1"]
[WhiteElo "2522"]
[BlackElo "2992"]
[TimeControl "180+1"]
[EndTime "8:06:26 PDT"]
[Termination "Beca95 won by checkmate"]

1. Nc3 {[%clk 0:03:00.3]} 1... d5 {[%clk 0:02:58.8]} 2. d4 {[%clk 0:02:59.3]}
2... Nf6 {[%clk 0:02:52.2]} 3. Bf4 {[%clk 0:02:58.7]} 3... e6 {[%clk 0:02:52.6]}
4. Nb5 {[%clk 0:02:58.1]} 4... Bb4+ {[%clk 0:02:51.5]} 5. c3 {[%clk 0:02:58.4]}
5... Ba5 {[%clk 0:02:51.7]} 6. a4 {[%clk 0:02:59.3]} 6... a6 {[%clk 0:02:50.8]}
7. b4 {[%clk 0:02:58.5]} 7... Bb6 {[%clk 0:02:41.7]} 8. a5 {[%clk 0:02:46.7]}
8... axb5 {[%clk 0:02:29]} 9. axb6 {[%clk 0:02:46.5]} 9... Rxa1 {[%clk
0:02:28.5]} 10. Qxa1 {[%clk 0:02:45.5]} 10... Na6 {[%clk 0:02:13.1]} 11. bxc7
{[%clk 0:02:29.5]} 11... Qd7 {[%clk 0:02:13]} 12. Qa5 {[%clk 0:02:26.6]} 12...
Qc6 {[%clk 0:02:12.6]} 13. Bd2 {[%clk 0:02:10.7]} 13... b6 {[%clk 0:02:07.8]}
14. Qa3 {[%clk 0:02:01.6]} 14... Ne4 {[%clk 0:02:07.4]} 15. Nf3 {[%clk
0:01:57.6]} 15... f6 {[%clk 0:02:07.4]} 16. e3 {[%clk 0:01:54.4]} 16... O-O
{[%clk 0:02:07]} 17. Bd3 {[%clk 0:01:52.7]} 17... Nxc7 {[%clk 0:02:06.8]} 18.
O-O {[%clk 0:01:47.7]} 18... Bd7 {[%clk 0:02:06.8]} 19. Ra1 {[%clk 0:01:42.2]}
19... g5 {[%clk 0:02:06.8]} 20. h3 {[%clk 0:01:30.3]} 20... Be8 {[%clk
0:02:04.2]} 21. Qb2 {[%clk 0:01:23.6]} 21... Bg6 {[%clk 0:02:02.5]} 22. Be1
{[%clk 0:01:09.9]} 22... Ra8 {[%clk 0:01:57.6]} 23. Bb1 {[%clk 0:01:00.6]} 23...
Nd6 {[%clk 0:01:51.1]} 24. Bxg6 {[%clk 0:00:39.3]} 24... hxg6 {[%clk 0:01:52]}
25. Nd2 {[%clk 0:00:39.4]} 25... Ra4 {[%clk 0:01:50.2]} 26. f3 {[%clk
0:00:32.4]} 26... Qa8 {[%clk 0:01:50]} 27. Rc1 {[%clk 0:00:19.7]} 27... Kf7
{[%clk 0:01:47.7]} 28. Bg3 {[%clk 0:00:19.4]} 28... Ra2 {[%clk 0:01:47.1]} 29.
Qb1 {[%clk 0:00:14.4]} 29... Nf5 {[%clk 0:01:46.1]} 30. Nf1 {[%clk 0:00:14]}
30... Ne8 {[%clk 0:01:39.8]} 31. e4 {[%clk 0:00:11]} 31... Nxg3 {[%clk
0:01:39.6]} 32. Nxg3 {[%clk 0:00:11.2]} 32... Nd6 {[%clk 0:01:40]} 33. Re1
{[%clk 0:00:05.9]} 33... Rd2 {[%clk 0:01:19.6]} 34. e5 {[%clk 0:00:05.8]} 34...
Nc4 {[%clk 0:01:18.1]} 35. exf6 {[%clk 0:00:05]} 35... Qa2 {[%clk 0:01:17.8]}
36. Kh1 {[%clk 0:00:01.8]} 36... Rxg2 {[%clk 0:01:16.8]} 37. Nf1 {[%clk
0:00:02.1]} 37... Qf2 {[%clk 0:01:15.7]} 38. Qa1 {[%clk 0:00:01.5]} 38... Rg1#
{[%clk 0:01:15.3]} 0-1

[Event "Early-Titled-Tuesday-Blitz-July-09-2024"]
[Site "Chess.com"]
[Date "2024.07.09"]
[Round "1"]
[White "bubeliang"]
[Black "EdenDzung06"]
[Result "1-0"]
[WhiteElo "2822"]
[BlackElo "2453"]
[TimeControl "180+1"]
[EndTime "8:06:29 PDT"]
[Termination "bubeliang won by checkmate"]

1. e4 {[%clk 0:02:56.8]} 1... c6 {[%clk 0:02:58.3]} 2. d4 {[%clk 0:02:46.3]}
2... d5 {[%clk 0:02:57.9]} 3. Nc3 {[%clk 0:02:45.7]} 3... dxe4 {[%clk
0:02:56.7]} 4. Nxe4 {[%clk 0:02:46.6]} 4... Bf5 {[%clk 0:02:56.1]} 5. Ng3 {[%clk
0:02:46.6]} 5... Bg6 {[%clk 0:02:56.5]} 6. h4 {[%clk 0:02:46]} 6... h6 {[%clk
0:02:56.8]} 7. Nf3 {[%clk 0:02:42.3]} 7... Nd7 {[%clk 0:02:56.1]} 8. Bf4 {[%clk
0:02:30.5]} 8... e6 {[%clk 0:02:54.6]} 9. Bd3 {[%clk 0:02:23.8]} 9... Bxd3
{[%clk 0:02:54.1]} 10. Qxd3 {[%clk 0:02:24.6]} 10... Qa5+ {[%clk 0:02:54.2]} 11.
c3 {[%clk 0:02:23.2]} 11... Be7 {[%clk 0:02:52.5]} 12. O-O {[%clk 0:02:21.7]}
12... Ngf6 {[%clk 0:02:51.7]} 13. Rfe1 {[%clk 0:02:19.7]} 13... O-O {[%clk
0:02:50.6]} 14. Nf5 {[%clk 0:02:19.3]} 14... exf5 {[%clk 0:02:45.6]} 15. Rxe7
{[%clk 0:02:18.7]} 15... Rae8 {[%clk 0:02:45.6]} 16. b4 {[%clk 0:02:14.1]} 16...
Qd5 {[%clk 0:02:41.4]} 17. c4 {[%clk 0:02:03.9]} 17... Qe4 {[%clk 0:02:11]} 18.
Rxe4 {[%clk 0:02:02.2]} 18... fxe4 {[%clk 0:02:10.7]} 19. Qc3 {[%clk 0:02:02.2]}
19... exf3 {[%clk 0:02:10.8]} 20. Qxf3 {[%clk 0:02:03.1]} 20... Re4 {[%clk
0:02:09.7]} 21. Rd1 {[%clk 0:02:00]} 21... Rfe8 {[%clk 0:02:08.7]} 22. g3 {[%clk
0:01:59.5]} 22... Nb6 {[%clk 0:02:00.9]} 23. Be5 {[%clk 0:01:46.8]} 23... Nbd7
{[%clk 0:01:37.1]} 24. Bxf6 {[%clk 0:01:43.4]} 24... Nxf6 {[%clk 0:01:35.3]} 25.
Kg2 {[%clk 0:01:40.9]} 25... Rd8 {[%clk 0:01:31.9]} 26. Qc3 {[%clk 0:01:35.4]}
26... Re2 {[%clk 0:01:29]} 27. Qf3 {[%clk 0:01:26.2]} 27... Re4 {[%clk
0:01:15.8]} 28. d5 {[%clk 0:01:20.2]} 28... Rxc4 {[%clk 0:01:14.7]} 29. dxc6
{[%clk 0:01:19.1]} 29... Rxd1 {[%clk 0:01:14.6]} 30. Qxd1 {[%clk 0:01:15.9]}
30... Rxc6 {[%clk 0:01:14.6]} 31. b5 {[%clk 0:01:14.7]} 31... Re6 {[%clk
0:01:06.8]} 32. Qd8+ {[%clk 0:01:13.2]} 32... Ne8 {[%clk 0:01:01.7]} 33. Qd7
{[%clk 0:01:11.6]} 33... Re2 {[%clk 0:00:55.4]} 34. a4 {[%clk 0:01:10.8]} 34...
a6 {[%clk 0:00:48.3]} 35. Qxb7 {[%clk 0:01:08]} 35... axb5 {[%clk 0:00:47.7]}
36. a5 {[%clk 0:01:07.7]} 36... Kh7 {[%clk 0:00:40.7]} 37. a6 {[%clk 0:01:06.5]}
37... Nd6 {[%clk 0:00:39.5]} 38. Qd5 {[%clk 0:01:06]} 38... Ne4 {[%clk
0:00:28.1]} 39. a7 {[%clk 0:01:04]} 39... Rxf2+ {[%clk 0:00:27.5]} 40. Kg1
{[%clk 0:01:03.8]} 40... f5 {[%clk 0:00:23.3]} 41. a8=Q {[%clk 0:01:03]} 41...
Nxg3 {[%clk 0:00:23.7]} 42. Qag8+ {[%clk 0:01:01.8]} 42... Kg6 {[%clk 0:00:23]}
43. Qdf7# {[%clk 0:01:02.7]} 1-0

[Event "Early-Titled-Tuesday-Blitz-July-09-2024"]
[Site "Chess.com"]
[Date "2024.07.09"]
[Round "1"]
[White "hakanazeri2"]
[Black "Os55555"]
[Result "1-0"]
[WhiteElo "2608"]
[BlackElo "2268"]
[TimeControl "180+1"]
[EndTime "8:06:30 PDT"]
[Termination "hakanazeri2 won by resignation"]

1. Nf3 {[%clk 0:02:23.8]} 1... d5 {[%clk 0:02:56.1]} 2. d4 {[%clk 0:02:00.2]}
2... Nf6 {[%clk 0:02:54.6]} 3. c4 {[%clk 0:02:00]} 3... e6 {[%clk 0:02:51.6]} 4.
g3 {[%clk 0:02:00.1]} 4... Be7 {[%clk 0:02:47.9]} 5. Bg2 {[%clk 0:02:00.4]} 5...
O-O {[%clk 0:02:48.2]} 6. O-O {[%clk 0:01:58.1]} 6... a5 {[%clk 0:02:48.3]} 7.
Qc2 {[%clk 0:01:54.4]} 7... Na6 {[%clk 0:02:42.2]} 8. a3 {[%clk 0:01:53.6]} 8...
b6 {[%clk 0:02:42.3]} 9. cxd5 {[%clk 0:01:53.4]} 9... exd5 {[%clk 0:02:39.9]}
10. Ne5 {[%clk 0:01:53.4]} 10... Bb7 {[%clk 0:02:37.3]} 11. Nc6 {[%clk
0:01:53.6]} 11... Qe8 {[%clk 0:02:36.3]} 12. Nxe7+ {[%clk 0:01:51.8]} 12... Qxe7
{[%clk 0:02:37.2]} 13. Nc3 {[%clk 0:01:52.4]} 13... Rac8 {[%clk 0:02:33.8]} 14.
Bg5 {[%clk 0:01:52.3]} 14... c5 {[%clk 0:02:24]} 15. Rad1 {[%clk 0:01:31]} 15...
h6 {[%clk 0:02:15.2]} 16. Bxf6 {[%clk 0:01:24.5]} 16... Qxf6 {[%clk 0:02:16.1]}
17. Bxd5 {[%clk 0:01:20.4]} 17... Bxd5 {[%clk 0:02:02.4]} 18. Nxd5 {[%clk
0:01:21.3]} 18... Qd6 {[%clk 0:01:55.9]} 19. dxc5 {[%clk 0:01:17.1]} 19... Rxc5
{[%clk 0:01:54.1]} 20. Qb3 {[%clk 0:01:16.5]} 20... Qe6 {[%clk 0:01:43.1]} 21.
Qf3 {[%clk 0:01:09.4]} 21... Rc2 {[%clk 0:01:38.4]} 22. Nf4 {[%clk 0:01:08.2]}
22... Qa2 {[%clk 0:01:34.3]} 23. Qd3 {[%clk 0:01:07]} 23... Qc4 {[%clk
0:01:29.8]} 24. Qxc4 {[%clk 0:01:06.8]} 24... Rxc4 {[%clk 0:01:30.7]} 25. Rc1
{[%clk 0:01:02.1]} 25... Rfc8 {[%clk 0:01:30.3]} 26. Nd3 {[%clk 0:01:02.1]}
26... b5 {[%clk 0:01:23]} 27. f3 {[%clk 0:00:59.5]} 27... Nc5 {[%clk 0:01:19.6]}
28. Rxc4 {[%clk 0:00:54.7]} 28... bxc4 {[%clk 0:01:20.5]} 29. Nxc5 {[%clk
0:00:53.8]} 29... Rxc5 {[%clk 0:01:20.3]} 30. Rc1 {[%clk 0:00:54]} 30... a4
{[%clk 0:01:19.7]} 31. Kf2 {[%clk 0:00:53.3]} 31... Kf8 {[%clk 0:01:13.8]} 32.
g4 {[%clk 0:00:53.3]} 32... Ke7 {[%clk 0:01:10.7]} 33. h4 {[%clk 0:00:53.4]}
33... Kd6 {[%clk 0:01:10.4]} 34. f4 {[%clk 0:00:48.3]} 34... Kd5 {[%clk
0:01:09.5]} 35. Kf3 {[%clk 0:00:48.5]} 35... Rb5 {[%clk 0:01:05.4]} 36. Rc2
{[%clk 0:00:45.7]} 36... Kd4 {[%clk 0:01:00.1]} 37. e3+ {[%clk 0:00:43.4]} 37...
Kd5 {[%clk 0:00:48.6]} 38. Rd2+ {[%clk 0:00:42.9]} 38... Kc5 {[%clk 0:00:48.2]}
39. Rd7 {[%clk 0:00:40.7]} 39... Rxb2 {[%clk 0:00:48.3]} 40. Rxf7 {[%clk
0:00:41]} 40... Rb6 {[%clk 0:00:46.5]} 41. Rxg7 {[%clk 0:00:38.3]} 41... c3
{[%clk 0:00:46.5]} 42. Rc7+ {[%clk 0:00:38.2]} 42... Rc6 {[%clk 0:00:46.5]} 43.
Rxc6+ {[%clk 0:00:38.9]} 43... Kxc6 {[%clk 0:00:46.9]} 44. Ke2 {[%clk
0:00:39.7]} 1-0

[Event "Early-Titled-Tuesday-Blitz-July-09-2024"]
[Site "Chess.com"]
[Date "2024.07.09"]
[Round "1"]
[White "Shivananda1964"]
[Black "Lector118"]
[Result "0-1"]
[WhiteElo "2361"]
[BlackElo "2673"]
[TimeControl "180+1"]
[EndTime "8:06:34 PDT"]
[Termination "Lector118 won by resignation"]

1. e4 {[%clk 0:02:55.7]} 1... c5 {[%clk 0:02:59.7]} 2. Nf3 {[%clk 0:02:54.4]}
2... Nc6 {[%clk 0:02:59.7]} 3. c3 {[%clk 0:02:48.6]} 3... d5 {[%clk 0:02:58.6]}
4. exd5 {[%clk 0:02:48.5]} 4... Qxd5 {[%clk 0:02:59.5]} 5. d4 {[%clk 0:02:48.8]}
5... Nf6 {[%clk 0:02:55]} 6. Be2 {[%clk 0:02:47.5]} 6... e6 {[%clk 0:02:45.6]}
7. O-O {[%clk 0:02:45.9]} 7... cxd4 {[%clk 0:02:44.3]} 8. cxd4 {[%clk
0:02:45.5]} 8... Be7 {[%clk 0:02:22]} 9. Nc3 {[%clk 0:02:44.3]} 9... Qd6 {[%clk
0:02:22.1]} 10. a3 {[%clk 0:02:36.9]} 10... O-O {[%clk 0:02:19.8]} 11. b4 {[%clk
0:02:19.6]} 11... b6 {[%clk 0:02:11.8]} 12. Be3 {[%clk 0:02:13.6]} 12... Bb7
{[%clk 0:02:11.1]} 13. Qb3 {[%clk 0:02:13.4]} 13... Rfd8 {[%clk 0:02:09.3]} 14.
Rad1 {[%clk 0:01:52.4]} 14... Rac8 {[%clk 0:02:08.2]} 15. d5 {[%clk 0:01:43]}
15... exd5 {[%clk 0:02:01.2]} 16. Nb5 {[%clk 0:01:40.8]} 16... Qb8 {[%clk
0:01:59]} 17. g3 {[%clk 0:01:34.2]} 17... a6 {[%clk 0:01:53]} 18. Bf4 {[%clk
0:01:30.7]} 18... Qa8 {[%clk 0:01:53.4]} 19. Nbd4 {[%clk 0:01:07.2]} 19... Ne4
{[%clk 0:01:44.4]} 20. Nxc6 {[%clk 0:00:59.2]} 20... Bxc6 {[%clk 0:01:43.6]} 21.
Nd4 {[%clk 0:00:59.4]} 21... Bb7 {[%clk 0:01:40.9]} 22. Bg4 {[%clk 0:00:21.9]}
22... Rc4 {[%clk 0:01:35.4]} 23. Nf5 {[%clk 0:00:15]} 23... Bf6 {[%clk
0:01:31.4]} 24. Ne3 {[%clk 0:00:13.9]} 24... Rd4 {[%clk 0:01:25.5]} 25. Rxd4
{[%clk 0:00:12]} 25... Bxd4 {[%clk 0:01:26.4]} 26. Rd1 {[%clk 0:00:11.6]} 26...
Bxe3 {[%clk 0:01:03.4]} 27. Bxe3 {[%clk 0:00:12.2]} 27... b5 {[%clk 0:01:01.9]}
28. Bd4 {[%clk 0:00:11.6]} 28... Qb8 {[%clk 0:00:56.1]} 29. Qe3 {[%clk
0:00:11.2]} 29... Qd6 {[%clk 0:00:53.4]} 30. Bf5 {[%clk 0:00:11.3]} 30... Qe7
{[%clk 0:00:48.1]} 31. Bxe4 {[%clk 0:00:10.8]} 31... dxe4 {[%clk 0:00:45.9]} 32.
Bc5 {[%clk 0:00:10.1]} 32... Rxd1+ {[%clk 0:00:45.5]} 0-1

[Event "Early-Titled-Tuesday-Blitz-July-09-2024"]
[Site "Chess.com"]
[Date "2024.07.09"]
[Round "1"]
[White "klauser63"]
[Black "DucksParadise"]
[Result "0-1"]
[WhiteElo "2310"]
[BlackElo "2631"]
[TimeControl "180+1"]
[EndTime "8:06:34 PDT"]
[Termination "DucksParadise won on time"]

1. e4 {[%clk 0:02:58.9]} 1... b6 {[%clk 0:02:57.2]} 2. d4 {[%clk 0:02:58.4]}
2... Bb7 {[%clk 0:02:57.3]} 3. Nc3 {[%clk 0:02:55.3]} 3... e6 {[%clk 0:02:56.9]}
4. Nf3 {[%clk 0:02:55.3]} 4... Bb4 {[%clk 0:02:56.2]} 5. Bd3 {[%clk 0:02:54.6]}
5... d5 {[%clk 0:02:56.2]} 6. e5 {[%clk 0:02:53.5]} 6... c5 {[%clk 0:02:52.1]}
7. a3 {[%clk 0:02:53.4]} 7... Bxc3+ {[%clk 0:02:48.7]} 8. bxc3 {[%clk
0:02:54.3]} 8... Ba6 {[%clk 0:02:45.9]} 9. O-O {[%clk 0:02:52.3]} 9... Ne7
{[%clk 0:02:44.4]} 10. a4 {[%clk 0:02:34.4]} 10... Bxd3 {[%clk 0:02:42.9]} 11.
Qxd3 {[%clk 0:02:33.4]} 11... Nbc6 {[%clk 0:02:35.3]} 12. Ba3 {[%clk 0:02:30.2]}
12... Qc7 {[%clk 0:02:10]} 13. Rfe1 {[%clk 0:02:25.1]} 13... O-O {[%clk
0:01:58.6]} 14. dxc5 {[%clk 0:02:11.7]} 14... Rfc8 {[%clk 0:01:53.4]} 15. cxb6
{[%clk 0:02:06]} 15... axb6 {[%clk 0:01:54.3]} 16. Bd6 {[%clk 0:02:01]} 16...
Qd8 {[%clk 0:01:49.1]} 17. Nd4 {[%clk 0:01:56.9]} 17... Nxd4 {[%clk 0:01:35.2]}
18. cxd4 {[%clk 0:01:39.8]} 18... Nf5 {[%clk 0:01:33.6]} 19. c3 {[%clk
0:00:58.5]} 19... Nxd6 {[%clk 0:01:31.4]} 20. exd6 {[%clk 0:00:59.4]} 20... Qxd6
{[%clk 0:01:32]} 21. Reb1 {[%clk 0:00:57.6]} 21... Rc4 {[%clk 0:01:30.7]} 22.
Qc2 {[%clk 0:00:52.7]} 22... g6 {[%clk 0:01:28]} 23. Qb3 {[%clk 0:00:51.6]}
23... Qc6 {[%clk 0:01:21.6]} 24. Qxb6 {[%clk 0:00:41.1]} 24... Qxb6 {[%clk
0:01:17.5]} 25. Rxb6 {[%clk 0:00:42]} 25... Rxc3 {[%clk 0:01:15.5]} 26. Rb4
{[%clk 0:00:25.5]} 26... Ra5 {[%clk 0:01:02.7]} 27. Kf1 {[%clk 0:00:20.7]} 27...
Rc2 {[%clk 0:00:52.1]} 28. Ke1 {[%clk 0:00:18.4]} 28... h5 {[%clk 0:00:49.9]}
29. Rb5 {[%clk 0:00:09.2]} 29... Rxb5 {[%clk 0:00:48.3]} 30. axb5 {[%clk
0:00:10.1]} 30... Rb2 {[%clk 0:00:48.4]} 31. Ra8+ {[%clk 0:00:07.3]} 31... Kg7
{[%clk 0:00:48.1]} 32. Rb8 {[%clk 0:00:06.7]} 32... Rb4 {[%clk 0:00:47.9]} 0-1

[Event "Early-Titled-Tuesday-Blitz-July-09-2024"]
[Site "Chess.com"]
[Date "2024.07.09"]
[Round "1"]
[White "wadsy27"]
[Black "prosequi"]
[Result "1-0"]
[WhiteElo "2650"]
[BlackElo "2331"]
[TimeControl "180+1"]
[EndTime "8:06:38 PDT"]
[Termination "wadsy27 won by checkmate"]

1. e4 {[%clk 0:02:56.5]} 1... c5 {[%clk 0:02:59.9]} 2. Nf3 {[%clk 0:02:55.6]}
2... Nc6 {[%clk 0:03:00.2]} 3. Bb5 {[%clk 0:02:53.7]} 3... g6 {[%clk 0:03:00.1]}
4. O-O {[%clk 0:02:52.1]} 4... Bg7 {[%clk 0:02:59.9]} 5. Re1 {[%clk 0:02:52.6]}
5... e5 {[%clk 0:02:56.7]} 6. a4 {[%clk 0:02:46.6]} 6... Nge7 {[%clk 0:02:50.8]}
7. Nc3 {[%clk 0:02:43.8]} 7... O-O {[%clk 0:02:47.1]} 8. d3 {[%clk 0:02:44.1]}
8... d6 {[%clk 0:02:36.9]} 9. Bg5 {[%clk 0:02:21.4]} 9... h6 {[%clk 0:02:32.2]}
10. Bxe7 {[%clk 0:02:20.4]} 10... Nxe7 {[%clk 0:02:32.2]} 11. Bc4 {[%clk
0:02:20]} 11... Kh7 {[%clk 0:02:22.8]} 12. Nd5 {[%clk 0:02:16]} 12... f5 {[%clk
0:02:19.2]} 13. Nd2 {[%clk 0:02:14.1]} 13... f4 {[%clk 0:02:09.4]} 14. Nxe7
{[%clk 0:02:00]} 14... Qxe7 {[%clk 0:02:09.5]} 15. a5 {[%clk 0:01:57.1]} 15...
g5 {[%clk 0:02:02.5]} 16. h3 {[%clk 0:01:52.4]} 16... Qe8 {[%clk 0:01:30.6]} 17.
Bd5 {[%clk 0:01:48.1]} 17... Rb8 {[%clk 0:01:28.3]} 18. f3 {[%clk 0:01:43]}
18... h5 {[%clk 0:01:26.3]} 19. Nc4 {[%clk 0:01:39]} 19... Qg6 {[%clk
0:01:25.5]} 20. Kf2 {[%clk 0:01:38.1]} 20... Bh6 {[%clk 0:01:19.5]} 21. Rh1
{[%clk 0:01:29.2]} 21... Qf6 {[%clk 0:01:16.3]} 22. Qe2 {[%clk 0:01:15.6]} 22...
Kg7 {[%clk 0:01:15.7]} 23. Ke1 {[%clk 0:01:15]} 23... g4 {[%clk 0:01:01.2]} 24.
hxg4 {[%clk 0:01:15.1]} 24... hxg4 {[%clk 0:01:01.5]} 25. Kd2 {[%clk 0:01:14.1]}
25... Bd7 {[%clk 0:00:52.4]} 26. c3 {[%clk 0:01:10.1]} 26... Rh8 {[%clk
0:00:52.2]} 27. Kc2 {[%clk 0:01:08.3]} 27... g3 {[%clk 0:00:47.3]} 28. Rh5
{[%clk 0:00:42]} 28... Be8 {[%clk 0:00:40.1]} 29. Rf5 {[%clk 0:00:41.3]} 29...
Qe7 {[%clk 0:00:40.1]} 30. d4 {[%clk 0:00:29.7]} 30... Bg6 {[%clk 0:00:33.9]}
31. dxe5 {[%clk 0:00:27.8]} 31... Bxf5 {[%clk 0:00:33.6]} 32. exf5 {[%clk
0:00:28.2]} 32... dxe5 {[%clk 0:00:33.6]} 33. Qe4 {[%clk 0:00:28]} 33... Kf6
{[%clk 0:00:31.6]} 34. Be6 {[%clk 0:00:25.7]} 34... Bg5 {[%clk 0:00:30.8]} 35.
Qxe5# {[%clk 0:00:25.4]} 1-0